{"text_format":"1","workbook":"xlsx","n_sheets":31,"sheets":["Instructions","Data","Demographics","Age","Education Attainment","Gender","HIspanic","Housing Distribution","Household Income","Individual Income","Income Population","Marital Status","Mortage","Race","Rent","School Enrollment","Age Distribution Female","Age Distribution Male","Education Attainment Female","Education Attainment Male","Household Income By Age","Household Size Owner","Household Size Renter","Income Population Female","Income Population Male","Marital Status Female","Marital Status Male","School Enrollment Female","School Enrollment Male","Tract Housing","Definitions"],"not_rendered":{"charts":55,"images":0,"macros":1,"external_links":0,"defined_names":28,"comments":0,"pivot_tables":0},"unopened":[],"bounds":{"document_bytes":16777216,"sheet_cells":100000,"rows_first":2000,"rows_last":500,"rows_between":2000,"halvings":0,"cell_chars":16384,"cell_head_chars":4096},"cells_cut":0,"cells_raw":0,"read":"whole","date_system":"1900"}

{"sheet":"Instructions","index":0,"n_rows":29,"n_cols":16,"rows_kept":29,"cut":false,"hidden":false,"merged":[]}
[]
[null,null,null,null,null,null,null,null,null,null,null,null,null,null,null,"CDX Technologies Support     "]
[null,null,"                         Tract Demographic Report",null,null,null,null,null,null,null,null,null,null,null,null,"(973) 895-5542     "]
[null,null,null,null,null,null,null,null,null,null,null,null,null,null,null,"support@CDXTech.com      "]
[]
[]
[null,null,"This template will produce a summary report for the Tract CSV data files created with the following CDX Bulk Demographic Tools."]
[]
[null,null,"Census Tract Demographics Batch Report"]
[]
[null,null,"If you haven't already done so, please enable macros for this Excel file.  Please refer to our website           "]
[null,null," for instructions on how to do this.  You will have to close the file prior to following these instructions."]
[]
[null,null,"Begin by pressing the \"Get Started\" button above.  This will take you to the \"Data\" worksheet where you can import your CSV data. "]
[null,null,"Press the \"Import CSV Data\" button to do this or cut and copy your data into the file making sure to match the correct column headings."]
[null,null,"You can then review the report data on the \"Demographics\", \"Gender\", \"Race\"  and other tabs.  A description of each of the "]
[null,null,"demographic factors can be found on the \"Definitions\" tab."]
[]
[null,null,"The data items that total Tract data such as population will only be accurate if your list of Tracts do not contain duplicates. "]
[null,null,"After importing data, if the program finds duplicate Tracts you will be given the option to consolidate and weight results.  The end report "]
[null,null,"will be sorted by Tracts with the highest number of occurences first.  This is useful in analyzing customer lists."]
[]
[null,null,"The report name on the chart worksheets can be changed by updating cell L1 on the \"Data\" tab to reflect the nature of your Tract list."]
[null,null,"Use the File \"Save As\" option to save the updated template under a new name.  This ensures the original template will remain unchanged."]
[]
[null,null,"Note:  This template works with Microsoft Excel 2010 and higher designed to be used for up to 100,000 rows of data.  If you need"]
[null,null,"to analyze more data or require additional customization, please email customsolutions@cdxtech.com or call (877) 239-8321."]
[]
[null,null,"Copyright © 2021 Hughes Financial Services, Inc."]

{"sheet":"Data","index":1,"n_rows":13,"n_cols":218,"rows_kept":13,"cut":false,"hidden":false,"merged":[]}
[null,null,{"$f":"\"Zip Code Data for \" & L1","v":"Zip Code Data for addresstotract"},null,null,null,null,null,null,null,"Report Name","addresstotract",null,null,null,null,null,null,null,null,null,null,null,null,null,null,null,null,null,null,null,null,null,null,null,null,null,null,null,null,null,null,null,null,null,null,null,null,null,null,null,null,null,null,null,null,null,null,null,null,null,null,null,null,null,null,null,null,null,null,null,null,null,null,null,null,null,null,null,null,null,null,null,null,null,null,null,null,null,null,null,null,null,null,null,null,null,null,null,null,null,null,null,null,null,null,null,null,null,null,null,null,null,null,null,null,null,null,null,null,null,null,null,null,null,null,null,null,null,null,null,null,null,null,null,null,null,null,null,null,null,null,null,null,null,null,null,null,null,null,null,null,null,null,null,null,null,null,null,null,null,null,null,null,null,null,null,null,null,null,null,null,null,null,null,null,null,null,null,null,null,null,null,null,null,null,null,null,null,null,null,null,null,null,{"$f":"SUM(GM3:GT13)","v":34881}]
[null,"Your Entry","Tract Number","Census Tract","Census Block","Occurences","County","State","AgeMedian","Age0to4","Age5to9","Age10to14","Age15to17","Age18to20","Age21to24","Age25to34","Age35to44","Age45to54","Age55to61","Age62to64","Age65to74","Age75to84","Age85Plus","AgeMedianFemale","AgeFemale0to4","AgeFemale5to9","AgeFemale10to14","AgeFemale15to17","AgeFemale18to20","AgeFemale21to24","AgeFemale25to34","AgeFemale35to44","AgeFemale45to54","AgeFemale55to61","AgeFemale62to64","AgeFemale65to74","AgeFemale75to84","AgeFemale85Plus","AgeMedianMale","AgeMale0to4","AgeMale5to9","AgeMale10to14","AgeMale15to17","AgeMale18to20","AgeMale21to24","AgeMale25to34","AgeMale35to44","AgeMale45to54","AgeMale55to61","AgeMale62to64","AgeMale65to74","AgeMale75to84","AgeMale85Plus","EarningsPopulation","EarningsMedian","EarningsLessthan10K","Earnings10to19K","Earnings20to29K","Earnings30to39K","Earnings40to49K","Earnings50to74K","Earnings75to99K","Earnings100KPlus","EarningsFemalePopulation","EarningsMedianFemale","EarningsFemaleLessthan10K","EarningsFemale10to19K","EarningsFemale20to29K","EarningsFemale30to39K","EarningsFemale40to49K","EarningsFemale50to74K","EarningsFemale75to99K","EarningsFemale100KPlus","EarningsMalePopulation","EarningsMedianMale","EarningsMaleLessthan10K","EarningsMale10to19K","EarningsMale20to29K","EarningsMale30to39K","EarningsMale40to49K","EarningsMale50to74K","EarningsMale75to99K","EarningsMale100KPlus","EducationAttainPopulation25PlusYears","EducationAttainNoSchooling","EducationAttainNurserytoGrade8","EducationAttainSomeHighSchool","EducationAttainHighSchoolGrad","EducationAttainSomeCollege","EducationAttainAssociateDegree","EducationAttainBachelorsDegree","EducationAttainAdvancedDegree","EducationAttainPopulationFemale25PlusYears","EducationAttainFemaleNoSchooling","EducationAttainFemaleNurserytoGrade8","EducationAttainFemaleSomeHighSchool","EducationAttainFemaleHighSchoolGrad","EducationAttainFemaleSomeCollege","EducationAttainFemaleAssociateDegree","EducationAttainFemaleBachelorsDegree","EducationAttainFemaleAdvancedDegree","EducationAttainPopulationMale25PlusYears","EducationAttainMaleNoSchooling","EducationAttainMaleNurserytoGrade8","EducationAttainMaleSomeHighSchool","EducationAttainMaleHighSchoolGrad","EducationAttainMaleSomeCollege","EducationAttainMaleAssociateDegree","EducationAttainMaleBachelorsDegree","EducationAttainMaleAdvancedDegree","HouseholdsTotal","HouseholdIncome0to24K","HouseholdIncome25to49K","HouseholdIncome50to74K","HouseholdIncome75to99K","HouseholdIncome100to149K","HouseholdIncome150to199K","HouseholdIncome200KPlus","HouseholdIncomeMedian","HouseholdIncomeMedianunder25years","HouseholdIncomeMedian25to44years","HouseholdIncomeMedian45to64years","HouseholdIncomeMedian65yearsandover","HouseholdsOwnerOccuppied","HouseholdSizeOwnerOccupied1Person","HouseholdSizeOwnerOccupied2Person","HouseholdSizeOwnerOccupied3Person","HouseholdSizeOwnerOccupied4Person","HouseholdSizeOwnerOccupied5Person","HouseholdSizeOwnerOccupied6Person","HouseholdSizeOwnerOccupied7PlusPerson","HouseholdsRenterOccupied","HouseholdSizeRenterOccupied1Person","HouseholdSizeRenterOccupied2Person","HouseholdSizeRenterOccupied3Person","HouseholdSizeRenterOccupied4Person","HouseholdSizeRenterOccupied5Person","HouseholdSizeRenterOccupied6Person","HouseholdSizeRenterOccupied7PlusPerson","HouseholdSizeAverage","HouseholdSizeAverageOwnerOccupied","HouseholdSizeAverageRenterOccupied","HousingUnitswithMortgage","HousingUnitswithoutMortgage","HousingValueMedian","HousingValueLessthan50K","HousingValue50to99K","HousingValue100to149K","HousingValue150to199K","HousingValue200to299K","HousingValue300to399K","HousingValue400to499K","HousingValue500to749K","HousingValue750to999K","HousingValue1MMPlus","MaritalStatusPopulation15PlusYears","MaritalStatusNeverMarried","MaritalStatusMarriedSpousePresent","MaritalStatusMarriedSpouseAbsent","MaritalStatusDivorced","MaritalStatusWidowed","MaritalStatusPopulationFemale15PlusYears","MaritalStatusFemaleNeverMarried","MaritalStatusFemaleMarriedSpousePresent","MaritalStatusFemaleMarriedSpouseAbsent","MaritalStatusFemaleDivorced","MaritalStatusFemaleWidowed","MaritalStatusPopulationMale15PlusYears","MaritalStatusMaleNeverMarried","MaritalStatusMaleMarriedSpousePresent","MaritalStatusMaleMarriedSpouseAbsent","MaritalStatusMaleDivorced","MaritalStatusMaleWidowed","Population","PopulationFemale","PopulationMale","PopulationHispanic","PopulationNonHispanic","RaceAsian","RaceBlack","RaceHawaiian","RaceIndian","RaceOther","RaceTwoOrmore","RaceWhite","RentGrossCashLessthan250","RentGrossCash250to499","RentGrossCash500to749","RentGrossCash750to999","RentGrossCash1000to1249","RentGrossCash1250to1499","RentGrossCash1500to1999","RentGrossCash2000Plus","RentGrossNoCash","SchoolEnrollPreschool","SchoolEnrollKindergarten","SchoolEnrollGrades1to4","SchoolEnrollGrades5to8","SchoolEnrollGrades9to12","SchoolEnrollCollege","SchoolEnrollGradSchool","SchoolEnrollNotEnrolled","SchoolEnrollFemalePreschool","SchoolEnrollFemaleKindergarten","SchoolEnrollFemaleGrades1to4","SchoolEnrollFemaleGrades5to8","SchoolEnrollFemaleGrades9to12","SchoolEnrollFemaleCollege","SchoolEnrollFemaleGradSchool","SchoolEnrollFemaleNotEnrolled","SchoolEnrollMalePreschool","SchoolEnrollMaleKindergarten","SchoolEnrollMaleGrades1to4","SchoolEnrollMaleGrades5to8","SchoolEnrollMaleGrades9to12","SchoolEnrollMaleCollege","SchoolEnrollMaleGradSchool","SchoolEnrollMaleNotEnrolled"]
[null,"5000 Richard Arrington Jr Blvd N;Birmingham, AL ",3,"01073000300","01073000300013",1,"Jefferson County","AL",34.4,115,203,45,70,48,48,401,238,235,111,64,112,120,9,36.6,51,80,8,70,12,21,164,69,137,66,64,59,43,9,30.9,64,123,37,0,36,27,237,169,98,45,0,53,77,0,875,17231,201,335,146,12,51,116,14,0,432,15636,146,145,132,0,0,9,0,0,443,19004,55,190,14,12,51,107,14,0,1290,13,22,300,470,368,48,22,47,611,0,7,88,220,218,48,7,23,679,13,15,212,250,150,0,15,24,757,460,85,178,9,14,0,11,20875,0,20066,21722,19063,136,58,39,19,20,0,0,0,621,303,93,117,65,43,0,0,2.27,2.11,2.2999999999999998,16,120,47000,77,50,0,9,0,0,0,0,0,0,1456,913,132,110,292,9,714,410,65,88,142,9,742,503,67,22,150,0,1819,853,966,212,1607,0,1419,0,0,121,24,255,31,63,198,262,21,11,0,0,35,24,58,98,55,48,22,15,1404,0,52,37,18,36,22,0,646,24,6,61,37,12,0,15,758]
[null,"7941 Crestwood Blvd;Birmingham, Alabama ",56,"01073005600","01073005600007",1,"Jefferson County","AL",36.4,232,122,124,52,55,298,1430,669,273,399,89,302,286,456,34.200000000000003,164,46,107,52,37,279,834,248,149,149,32,211,197,432,37.6,68,76,17,0,18,19,596,421,124,250,57,91,89,24,2964,43787,325,232,341,404,333,737,364,228,1548,36282,218,176,206,193,157,342,142,114,1416,50553,107,56,135,211,176,395,222,114,3904,16,95,116,769,411,212,1410,875,2252,0,75,46,454,238,133,804,502,1652,16,20,70,315,173,79,606,373,2306,325,643,367,350,365,175,81,54913,0,82269,70640,32589,1315,552,601,119,43,0,0,0,991,406,361,104,75,45,0,0,1.91,1.79,2.08,926,389,230000,59,0,204,204,623,225,0,0,0,0,4309,1295,1829,104,570,511,2620,847,915,46,318,494,1689,448,914,58,252,17,4787,2937,1850,454,4333,0,312,0,0,331,0,4144,20,0,123,154,101,278,218,56,41,32,0,168,78,82,48,264,3943,32,0,92,61,82,36,151,2379,0,0,76,17,0,12,113,1564]
[null,"2000 Big M Blvd;Clanton, AL ",602,"01021060200","01021060200102",1,"Chilton County","AL",41.2,156,147,109,156,118,93,326,364,311,329,105,255,218,69,44,27,82,25,86,78,52,193,178,165,174,76,113,121,29,40.4,129,65,84,70,40,41,133,186,146,155,29,142,97,40,1246,33523,233,143,143,195,125,156,163,88,581,24434,133,92,109,134,26,79,0,8,665,46595,100,51,34,61,99,77,163,80,1977,13,66,275,759,303,206,265,90,1049,0,41,100,430,146,127,154,51,928,13,25,175,329,157,79,111,39,1147,243,210,274,206,166,35,13,53997,0,54688,89511,36477,939,219,478,167,45,18,12,0,208,27,51,104,14,12,0,0,2.4,2.29,2.93,341,598,138000,185,150,186,133,152,90,39,0,0,4,2344,554,1253,54,284,199,1265,249,647,34,199,136,1079,305,606,20,85,63,2756,1399,1357,55,2701,0,7,0,7,55,0,2687,0,9,41,71,27,0,0,0,60,14,54,61,139,126,141,0,2092,0,33,49,17,94,66,0,1113,14,21,12,122,32,75,0,979]
[null,"631 E Barbour St;Eufaula, AL ",9509,"01005950900","01005950900003",1,"Barbour County","AL",33.1,207,427,253,162,306,62,713,458,436,245,160,266,148,38,36.799999999999997,127,221,70,45,62,37,359,280,228,169,59,161,92,24,28,80,206,183,117,244,25,354,178,208,76,101,105,56,14,1551,24947,364,250,250,219,137,145,142,44,691,23433,136,146,144,75,90,68,32,0,860,29167,228,104,106,144,47,77,110,44,2464,41,158,386,882,515,233,189,60,1372,8,110,169,435,361,158,93,38,1092,33,48,217,447,154,75,96,22,1600,785,423,119,154,94,19,6,25446,0,22283,0,22955,613,151,284,115,43,20,0,0,987,445,77,192,202,37,32,2,2.4300000000000002,2.37,2.46,385,228,111400,15,250,152,97,68,8,9,14,0,0,2994,1307,1035,148,302,202,1516,625,504,47,146,194,1478,682,531,101,156,8,3881,1934,1947,421,3460,27,2121,0,9,414,78,1232,104,342,349,124,34,3,0,0,31,19,55,360,200,329,121,23,2606,6,43,152,70,88,61,23,1387,13,12,208,130,241,60,0,1219]
[null,"1101 6th Ave NE;Decatur, AL ",4,"01103000400","01103000400012",1,"Morgan County","AL",40.299999999999997,128,242,218,127,90,214,422,769,501,402,186,370,190,61,41.5,57,129,54,109,45,109,203,329,247,193,105,197,116,61,38.9,71,113,164,18,45,105,219,440,254,209,81,173,74,0,2045,30853,349,351,256,397,210,263,138,81,952,27065,213,172,142,164,121,89,47,4,1093,32209,136,179,114,233,89,174,91,77,2901,21,226,369,719,493,290,570,213,1451,0,113,137,391,257,198,243,112,1450,21,113,232,328,236,92,327,101,1570,348,502,399,84,150,43,44,45349,35208,60500,51389,22389,1016,310,411,176,69,50,0,0,554,307,121,52,50,20,0,4,2.15,2.2200000000000002,2.0099999999999998,650,366,135400,62,333,191,207,161,40,15,0,7,0,3332,1004,1300,219,555,254,1714,452,637,75,360,190,1618,552,663,144,195,64,3920,1954,1966,455,3465,34,661,0,0,104,21,3100,43,117,235,55,31,0,33,14,26,37,31,218,185,134,118,57,3053,14,31,131,21,110,100,31,1473,23,0,87,164,24,18,26,1580]
[null,"151 Sessions Ln;Evergreen, AL ",9605,"01035960500","01035960500059",1,"Conecuh County","AL",49.2,62,97,51,30,71,113,148,150,287,261,26,182,83,83,49.9,48,35,18,18,34,0,94,106,147,135,20,114,39,62,48.4,14,62,33,12,37,113,54,44,140,126,6,68,44,21,696,20493,237,96,95,90,42,105,31,0,336,19630,104,68,42,31,20,59,12,0,360,21397,133,28,53,59,22,46,19,0,1220,17,32,126,606,276,51,89,23,717,0,22,76,318,187,51,40,23,503,17,10,50,288,89,0,49,0,685,332,119,112,46,76,0,0,27768,0,29632,0,20625,421,223,121,39,21,17,0,0,264,114,31,82,18,0,0,19,2.33,2.42,2.2000000000000002,95,326,92200,105,129,112,40,10,3,5,17,0,0,1434,560,338,89,180,267,769,285,164,8,141,171,665,275,174,81,39,96,1644,870,774,73,1571,0,690,0,25,0,4,925,21,130,51,56,0,0,0,0,6,0,22,75,51,64,0,0,1370,0,12,23,18,52,0,0,717,0,10,52,33,12,0,0,653]
[null,"801 Cleveland Ave;Attalla, Alabama ",102,"01055010200","01055010200005",1,"Etowah County","AL",38,159,672,342,109,374,160,506,544,623,317,133,698,221,169,38.700000000000003,118,161,159,14,188,42,323,396,277,170,51,257,133,160,31.6,41,511,183,95,186,118,183,148,346,147,82,441,88,9,2035,28921,166,423,482,261,312,317,42,32,1176,22472,155,256,314,218,94,97,42,0,859,41164,11,167,168,43,218,220,0,32,3211,39,91,412,1329,860,229,131,120,1767,19,44,202,673,545,152,80,52,1444,20,47,210,656,315,77,51,68,1917,460,741,190,269,185,61,11,38919,45227,0,40000,42851,1446,563,513,104,266,0,0,0,471,100,121,89,57,78,26,0,2.5299999999999998,2.2999999999999998,3.23,728,718,79500,215,689,346,108,50,26,0,12,0,0,3854,987,1459,246,753,409,2011,446,732,183,360,290,1843,541,727,63,393,119,5027,2449,2578,164,4863,0,782,21,0,0,70,4154,19,155,119,156,0,0,0,0,22,24,213,401,313,235,265,0,3474,24,34,40,159,14,161,0,1956,0,179,361,154,221,104,0,1518]
[null,"2140 Gunter Ave;Guntersville, AL ",307.01,"01095030701","01095030701045",1,"Marshall County","AL",38.200000000000003,338,302,249,94,85,183,459,352,535,267,110,449,182,41,33.4,207,214,192,56,37,79,249,186,232,128,74,221,82,27,43.5,131,88,57,38,48,104,210,166,303,139,36,228,100,14,1679,31612,247,158,361,267,197,176,138,135,749,25469,186,77,156,133,27,107,59,4,930,37098,61,81,205,134,170,69,79,131,2395,18,212,164,698,505,217,390,191,1199,10,120,60,412,252,107,139,99,1196,8,92,104,286,253,110,251,92,1418,378,395,142,204,196,33,70,46017,11164,49375,68929,38125,847,214,418,157,19,37,0,2,571,215,125,81,54,21,49,26,2.57,2.19,3.13,547,300,145400,44,144,255,136,112,85,57,5,9,0,2757,586,1500,136,334,201,1371,258,708,93,161,151,1386,328,792,43,173,50,3646,1984,1662,417,3229,10,546,0,22,15,37,3016,34,82,332,62,43,3,1,0,14,48,19,293,199,118,136,7,2613,34,8,225,148,60,69,1,1298,14,11,68,51,58,67,6,1315]
[null,"2031 Military St S;Hamilton, AL ",9644,"01093964400","01093964400089",1,"Marion County","AL",44.8,208,173,264,151,54,311,715,571,579,438,210,625,434,133,44.5,122,100,182,36,54,187,383,251,280,218,78,345,266,89,46,86,73,82,115,0,124,332,320,299,220,132,280,168,44,2068,24949,263,528,353,333,242,242,95,12,946,23750,143,201,265,190,54,67,14,12,1122,30802,120,327,88,143,188,175,81,0,3705,32,191,449,1356,702,263,506,206,1910,32,73,168,690,369,175,281,122,1795,0,118,281,666,333,88,225,84,2161,873,548,269,286,173,0,12,34396,0,43236,33961,24318,1560,482,715,119,178,66,0,0,601,332,156,89,22,0,0,2,2.13,2.27,1.75,849,711,111800,341,351,300,228,243,58,24,15,0,0,4221,982,1934,328,502,475,2187,516,931,86,219,435,2034,466,1003,242,283,40,4866,2591,2275,28,4838,0,237,0,0,28,122,4479,13,230,307,30,2,0,0,0,19,0,14,119,217,178,88,13,4126,0,14,36,167,50,58,13,2195,0,0,83,50,128,30,0,1931]
[null,"2314 S Broad Ave;Lanett, AL ",9544,"01017954400","01017954400044",1,"Chambers County","AL",49.7,19,26,51,19,0,40,117,94,107,111,13,85,74,40,54.9,16,15,33,19,0,31,33,27,51,55,6,62,61,40,41,3,11,18,0,0,9,84,67,56,56,7,23,13,0,378,25000,51,121,36,5,88,37,27,13,152,12976,36,91,21,0,4,0,0,0,226,43826,15,30,15,5,84,37,27,13,641,25,0,99,188,129,97,70,33,335,20,0,56,97,51,80,4,27,306,5,0,43,91,78,17,66,6,470,211,73,124,43,19,0,0,33295,0,57937,67554,20795,331,159,136,0,6,30,0,0,139,97,42,0,0,0,0,0,1.69,1.84,1.35,125,206,100700,64,100,66,76,25,0,0,0,0,0,700,268,184,52,80,116,385,117,91,14,53,110,315,151,93,38,27,6,796,449,347,0,796,0,651,0,0,0,0,145,0,50,39,18,0,0,5,0,27,3,26,0,51,19,13,0,668,0,15,0,33,19,13,0,353,3,11,0,18,0,0,0,315]
[null,"5465 Hwy 90 W;Mobile, AL ",68.02,"01097006802","01097006802040",1,"Mobile County","AL",37.4,114,122,208,176,75,231,443,388,279,294,113,281,173,63,39.1,84,60,63,123,75,92,183,220,101,151,75,151,58,46,36.9,30,62,145,53,0,139,260,168,178,143,38,130,115,17,1544,24593,381,241,290,303,139,112,0,78,711,22328,150,158,142,124,87,13,0,37,833,25960,231,83,148,179,52,99,0,41,2034,3,38,305,913,418,138,141,78,985,3,16,144,459,174,56,71,62,1049,0,22,161,454,244,82,70,16,1018,279,368,117,92,100,27,35,36912,35170,39271,56875,24620,623,184,238,106,34,16,30,15,395,53,101,116,92,5,0,28,2.9,2.63,3.32,260,363,95000,69,301,154,35,29,0,11,9,15,0,2516,699,1055,107,426,229,1275,371,522,75,152,155,1241,328,533,32,274,74,2960,1482,1478,337,2623,32,402,0,0,142,102,2282,0,0,117,108,103,40,0,0,27,17,10,104,193,228,76,0,2266,7,5,55,50,155,52,0,1110,10,5,49,143,73,24,0,1156]

{"sheet":"Demographics","index":2,"n_rows":7,"n_cols":11,"rows_kept":7,"cut":false,"hidden":false,"merged":[]}
[{"$f":"\"Demographics for \"& Data!L1","v":"Demographics for addresstotract"}]
[null,"Population",{"$f":"SUM(Data!FR3:FR100002)","v":36102},"Households",{"$f":"SUM(Data!DG3:DG100002)","v":15049}]
[null,"Median Age",{"$f":"SUMPRODUCT(Data!$F$3:$F$100002,Data!$I$3:$I$100002*($I$3:$I$100002<>\"0\"))/SUMIF(Data!$I$3:$I$100002,\"<>0\",Data!$F$3:$F$100002)","v":40.245454545454542},"Persons Per Household",{"$f":"SUMPRODUCT(Data!$F$3:$F$100002,Data!$EJ$3:$EJ$100002*($EJ$3:$EJ$100002<>\"0\"))/SUMIF(Data!$EJ$3:$EJ$100002,\"<>0\",Data!$F$3:$F$100002)","v":2.3009090909090908}]
[null,"Median Age Female",{"$f":"SUMPRODUCT(Data!$F$3:$F$100002,Data!$X$3:$X$100002*($X$3:$X$100002<>\"0\"))/SUMIF(Data!$X$3:$X$100002,\"<>0\",Data!$F$3:$F$100002)","v":41.236363636363642},"Median Income Per Household",{"$f":"SUMPRODUCT(Data!$F$3:$F$100002,Data!$DO$3:$DO$100002*($DO$3:$DO$100002<>\"0\"))/SUMIF(Data!$DO$3:$DO$100002,\"<>0\",Data!$F$3:$F$100002)","v":37989.727272727272}]
[null,"Median Age Male",{"$f":"SUMPRODUCT(Data!$F$3:$F$100002,Data!$AM$3:$AM$100002*($AM$3:$AM$100002<>\"0\"))/SUMIF(Data!$AM$3:$AM$100002,\"<>0\",Data!$F$3:$F$100002)","v":38.472727272727269},"Median Housing Value",{"$f":"SUMPRODUCT(Data!$F$3:$F$100002,Data!$EO$3:$EO$100002*($EO$3:$EO$100002<>\"0\"))/SUMIF(Data!$EO$3:$EO$100002,\"<>0\",Data!$F$3:$F$100002)","v":116945.45454545454}]
[]
[null,null,null,null,null,null,null,null,null,null," "]

{"sheet":"Age","index":3,"n_rows":20,"n_cols":5,"rows_kept":20,"cut":false,"hidden":false,"merged":[]}
[{"$f":"\"Population by Age for \"& Data!L1","v":"Population by Age for addresstotract"}]
[null,null,null,"Number","Percent"]
[null,null,"0 to 4",{"$f":"SUM(Data!J$3:$J$100002)","v":1738},{"$f":"D3/($D$17+0.000000001)","v":4.8141377209017559E-2}]
[null,null,"5 to 9",{"$f":"SUM(Data!K$3:$K$100002)","v":2533},{"$f":"D4/($D$17+0.000000001)","v":7.0162317877123986E-2}]
[null,null,"0 to 14",{"$f":"SUM(Data!L$3:$L$100002)","v":1914},5.3016453382082634E-2]
[null,null,"15 to 17",{"$f":"SUM(Data!M$3:$M$100002)","v":1146},3.174339371779869E-2]
[null,null,"18 to 20",{"$f":"SUM(Data!N$3:$N$100002)","v":1276},3.5344302254721752E-2]
[null,null,"21 to 24",{"$f":"SUM(Data!O3:$O$100002)","v":1753},4.8556866655585611E-2]
[null,null,"25 to 34",{"$f":"SUM(Data!$P$3:$P$100002)","v":5680},0.15733200376709996]
[null,null,"35 to 44",{"$f":"SUM(Data!Q$3:$Q$100002)","v":4597},0.12733366572488708]
[null,null,"45 to 54",{"$f":"SUM(Data!R$3:$R$100002)","v":4166},0.11539526896016522]
[null,null,"55 to 61",{"$f":"SUM(Data!S$3:$S$100002)","v":3174},8.7917566893798468E-2]
[null,null,"62 to 64",{"$f":"SUM(Data!T$3:$T$100002)","v":1209},3.3488449393384481E-2]
[null,null,"65 to 74",{"$f":"SUM(Data!$U$3:U$100002)","v":3625},0.10040994958727771]
[null,null,"75 to84",{"$f":"SUM(Data!V$3:$V$100002)","v":2129},5.8971802116224617E-2]
[null,null,"85 Plus",{"$f":"SUM(Data!W$3:$W$100002)","v":1162},3.2186582460804608E-2]
[null,null,"Total",{"$f":"SUM(D3:D16)","v":36102},{"$f":"SUM(E3:E16)","v":0.99999999999997247}]
[null,null,"Total Unique Tracts",{"$f":"COUNTA(Data!B3:B100000)","v":11}]
[null,null," Median Age",{"$f":"SUMPRODUCT(Data!$F$3:$F$100002,Data!$I$3:$I$100002*($I$3:$I100002<>\"0\"))/SUMIF(Data!$I$3:$I$100002,\"<>0\",Data!$F$3:$F$100002)","v":40.245454545454542}]
[null,null,"*May include tracts with no data"]

{"sheet":"Education Attainment","index":4,"n_rows":12,"n_cols":5,"rows_kept":12,"cut":false,"hidden":false,"merged":[]}
[{"$f":"\"Education Atteinment for \"& Data!L1","v":"Education Atteinment for addresstotract"}]
[null,null,null,"Number","Percent"]
[null,null,"No Schooling",{"$f":"SUM(Data!CG$3:$CG$100002)","v":238},{"$f":"D3/($D$11+0.000000001)","v":9.2455908631804348E-3}]
[null,null,"Nursery to Grade8",{"$f":"SUM(Data!CH$3:$CH$100002)","v":1131},{"$f":"D4/($D$11+0.000000001)","v":4.3935980110323833E-2}]
[null,null,"Some High School",{"$f":"SUM(Data!CI$3:$CI$100002)","v":3001},0.11657990832102724]
[null,null,"High School Graduate",{"$f":"SUM(Data!CJ$3:$CJ$100002)","v":8689},0.33754176054695295]
[null,null,"Some College",{"$f":"SUM(Data!CK$3:$CK$100002)","v":4980},0.19345816175898556]
[null,null,"Associate Degree",{"$f":"SUM(Data!CL$3:$CL$100002)","v":1984},7.707248854012598E-2]
[null,null,"Bachelors Degree",{"$f":"SUM(Data!CM$3:$CM$100002)","v":3783},0.14695827830004868]
[null,null,"Advanced Degree",{"$f":"SUM(Data!CN$3:$CN$100002)","v":1936},7.5207831559316471E-2]
[null,null,"Total (Age 25+)",{"$f":"SUM(D3:D10)","v":25742},{"$f":"SUM(E3:E10)","v":0.99999999999996114}]
[null,null,"Total Unique Tracts",{"$f":"COUNTA(Data!B3:B100000)","v":11}]

{"sheet":"Gender","index":5,"n_rows":5,"n_cols":7,"rows_kept":5,"cut":false,"hidden":false,"merged":[]}
[{"$f":"\"Gender Population for \"& Data!L1","v":"Gender Population for addresstotract"}]
[null,null,null,null,null,"Number","Percent"]
[null,null,null,null,"Male",{"$f":"SUM(Data!FT3:FT100002)","v":17200},{"$f":"F3/(F$5+0.000001)","v":0.47642789871817548}]
[null,null,null,null,"Female",{"$f":"SUM(Data!FS3:FS100002)","v":18902},{"$f":"F4/(F$5+0.000001)","v":0.52357210125412523}]
[null,null,null,null,"Total Population",{"$f":"SUM(F3,F4)","v":36102},{"$f":"SUM(G3:G4)","v":0.99999999997230071}]

{"sheet":"HIspanic","index":6,"n_rows":5,"n_cols":5,"rows_kept":5,"cut":false,"hidden":false,"merged":[]}
[{"$f":"\"Hispanic Population for \"& Data!L1","v":"Hispanic Population for addresstotract"}]
[null,null,null,"Number","Percent"]
[null,null,"Hispanic",{"$f":"SUM(Data!FU$3:FU$100002)","v":2616},{"$f":"D3/($D$5+0.000000001)","v":7.2461359481467175E-2}]
[null,null,"Non-Hispanic",{"$f":"SUM(Data!FV$3:FV$100002)","v":33486},{"$f":"D4/($D$5+0.000000001)","v":0.92753864051850521}]
[null,null,"Total Population",{"$f":"SUM(D3:D4)","v":36102},{"$f":"SUM(E3:E4)","v":0.99999999999997236}]

{"sheet":"Housing Distribution","index":7,"n_rows":13,"n_cols":5,"rows_kept":13,"cut":false,"hidden":false,"merged":[]}
[{"$f":"\"Housing Value Distribution for \"& Data!L1","v":"Housing Value Distribution for addresstotract"}]
[null,null,null,"Number","Percent"]
[null,null,"Less than 50K",{"$f":"SUM(Data!EP$3:EP$100002)","v":1236},{"$f":"D3/($D$13+0.000000001)","v":0.13366497242347425}]
[null,null,"50 to 99K",{"$f":"SUM(Data!EQ$3:EQ$100002)","v":2497},{"$f":"D4/($D$13+0.000000001)","v":0.27003352438625822}]
[null,null,"100 to 149K",{"$f":"SUM(Data!ER$3:ER$100002)","v":1966},0.21260949497131906]
[null,null,"150 to 199K",{"$f":"SUM(Data!ES$3:ES$100002)","v":1273},0.13766627014165267]
[null,null,"200 to 299K",{"$f":"SUM(Data!ET$3:ET$100002)","v":1473},0.1592949064561307]
[null,null,"300 to 399K",{"$f":"SUM(Data!EU$3:EU$100002)","v":535},5.7856602141228737E-2]
[null,null,"400 to 499K",{"$f":"SUM(Data!EV$3:EV$100002)","v":160},1.7302909051582424E-2]
[null,null,"500 to 749K",{"$f":"SUM(Data!EW$3:EW$100002)","v":72},7.7863090732120917E-3]
[null,null,"750 to 999K",{"$f":"SUM(Data!EX$3:EX$100002)","v":31},3.3524386287440951E-3]
[null,null,"1 MM Plus",{"$f":"SUM(Data!EY$3:EY$100002)","v":4},4.3257272628956066E-4]
[null,null,"Total Owner Occupied Homes",{"$f":"SUM(D3:D12)","v":9247},{"$f":"SUM(E3:E12)","v":0.99999999999989198}]

{"sheet":"Household Income","index":8,"n_rows":12,"n_cols":5,"rows_kept":12,"cut":false,"hidden":false,"merged":[]}
[{"$f":"\"Household Income Distribution for \"& Data!L1","v":"Household Income Distribution for addresstotract"}]
[null,null,null,"Number","Percent"]
[null,null,"0 to 24K",{"$f":"SUM(Data!DH$3:$DH$100002)","v":4694},{"$f":"D3/($D$10+0.000000001)","v":0.3119144129177811}]
[null,null,"25 to 49K",{"$f":"SUM(Data!DI$3:$DI$100002)","v":4107},0.2729084989035635]
[null,null,"50 to 74K",{"$f":"SUM(Data!DJ$3:$DJ$100002)","v":2291},0.1522360289720146]
[null,null,"75 to 99K",{"$f":"SUM(Data!DK$3:$DK$100002)","v":1743},0.11582164927901416]
[null,null,"100 to 149K",{"$f":"SUM(Data!DL$3:$DL$100002)","v":1538},0.10219948169312897]
[null,null,"150 to 199K",{"$f":"SUM(Data!DM$3:$DM$100002)","v":393},2.6114692006111627E-2]
[null,null,"200 KPlus",{"$f":"SUM(Data!DN$3:$DN$100002)","v":283},1.8805236228319568E-2]
[null,null,"Total Households",{"$f":"SUM(D3:D9)","v":15049},{"$f":"SUM(E3:E9)","v":0.9999999999999335}]
[null,null,"Total Unique Tracts",{"$f":"COUNTA(Data!B3:B100000)","v":11}]
[null,null,"Median Income Per Household",{"$f":"SUMPRODUCT(Data!$F$3:$F$100002,Data!$DO$3:$DO$100002*($DO$3:$DO$100002<>\"0\"))/SUMIF(Data!$DO$3:$DO$100002,\"<>0\",Data!$F$3:$F$100002)","v":37989.727272727272}]

{"sheet":"Individual Income","index":9,"n_rows":12,"n_cols":5,"rows_kept":12,"cut":false,"hidden":false,"merged":[]}
[{"$f":"\"Individual Income Tract Distribution for \"& Data!L1","v":"Individual Income Tract Distribution for addresstotract"}]
[null,null,null,"Number","Percent"]
[null,null,"0-25K*",{"$f":"SUMIFS(Data!$F$3:$F$100000,Data!$BC$3:$BC$100000,\"<=25000\")+SUMIFS(Data!$F$3:$F$100000,Data!$BC$3:$BC$100000,\"\")","v":6},{"$f":"D3/($D$9+0.000000001)","v":0.54545454540495864}]
[null,null,">25K to 50K",{"$f":"SUMIFS(Data!$F$3:$F$100000,Data!$BC$3:$BC$100000,\"<=50000\",Data!$BC$3:$BC$100000,\">25000\")","v":5},{"$f":"D4/($D$9+0.000000001)","v":0.45454545450413225}]
[null,null,"50K to 75K",{"$f":"SUMIFS(Data!$F$3:$F$100000,Data!$BC$3:$BC$100000,\"<=75000\",Data!$BC$3:$BC$100000,\">50000\")","v":0},0]
[null,null,"75K-100K",{"$f":"SUMIFS(Data!$F$3:$F$100000,Data!$BC$3:$BC$100000,\"<=100000\",Data!$BC$3:$BC$100000,\">75000\")","v":0},0]
[null,null,"100K - 125K",{"$f":"SUMIFS(Data!$F$3:$F$100000,Data!$BC$3:$BC$100000,\"<=125000\",Data!$BC$3:$BC$100000,\">100000\")","v":0},0]
[null,null,">125K",{"$f":"SUMIFS(Data!$F$3:$F$100000,Data!$BC$3:$BC$100000,\">125000\")","v":0},0]
[null,null,"Total Tracts",{"$f":"SUM(D3:D8)","v":11},{"$f":"SUM(E3:E8)","v":0.99999999990909094}]
[null,null,"Total Unique Tracts",{"$f":"COUNTA(Data!B3:B100000)","v":11}]
[null,null," Median Income Per Individual Earner",{"$f":"SUMPRODUCT(Data!$F$3:$F$100002,Data!$BC$3:$BC$100002*($BC$3:$BC$100002<>\"0\"))/SUMIF(Data!$BC$3:$BC$100002,\"<>0\",Data!$F$3:$F$100002)","v":27809.909090909092}]
[null,null,"*May include tracts with no data"]

{"sheet":"Income Population","index":10,"n_rows":14,"n_cols":5,"rows_kept":14,"cut":false,"hidden":false,"merged":[]}
[{"$f":"\"Individual Income Population Distribution for\"&Data!L1","v":"Individual Income Population Distribution foraddresstotract"}]
[null,null,null,"Number","Percent"]
[null,null,"<10K*",{"$f":"SUM(Data!BD$3:$BD$100002)","v":2817},{"$f":"D3/($D$11+0.000000001)","v":0.16492008664597124}]
[null,null,"10 to 19K",{"$f":"SUM(Data!BE$3:$BE$100002)","v":2878},{"$f":"D4/($D$11+0.000000001)","v":0.16849130612960783}]
[null,null,"20 to 29K",{"$f":"SUM(Data!BF$3:$BF$100002)","v":2753},0.1611732334172378]
[null,null,"30 to 39K",{"$f":"SUM(Data!BG$3:$BG$100002)","v":2486},0.14554183010361538]
[null,null,"40 to 49K",{"$f":"SUM(Data!BH$3:$BH$100002)","v":1876},0.10982963526724958]
[null,null,"50 to 74K",{"$f":"SUM(Data!BI$3:$BI$100002)","v":2406},0.14085826356769857]
[null,null,"75 to 99K",{"$f":"SUM(Data!BJ$3:$BJ$100002)","v":1154},6.7560447280600219E-2]
[null,null,">100K",{"$f":"SUM(Data!BK$3:$BK$100002)","v":711},4.1625197587960794E-2]
[null,null,"Total",{"$f":"SUM(D3:D10)","v":17081},{"$f":"SUM(E3:E10)","v":0.99999999999994127}]
[null,null,"Total Unique Tracts",{"$f":"COUNTA(Data!B3:B100000)","v":11}]
[null,null," Median Income Per Individual Earner",{"$f":"SUMPRODUCT(Data!$F$3:$F$100002,Data!$BC$3:$BC$100002*($BC$3:$BC$100002<>\"0\"))/SUMIF(Data!$BC$3:$BC$100002,\"<>0\",Data!$F$3:$F$100002)","v":27809.909090909092}]
[null,null,"*May include tracts with no data"]

{"sheet":"Marital Status","index":11,"n_rows":8,"n_cols":5,"rows_kept":8,"cut":false,"hidden":false,"merged":[]}
[{"$f":"\"Marital Status Distribution for \"& Data!L1","v":"Marital Status Distribution for addresstotract"}]
[null,null,null,"Number","Percent"]
[null,null,"Never Married",{"$f":"SUM(Data!FA$3:$FA$100002)","v":9155},{"$f":"D3/($D$8+0.000000001)","v":0.3060133034729316}]
[null,null,"Married Spouse Present",{"$f":"SUM(Data!FB$3:$FB$100002)","v":12019},{"$f":"D4/($D$8+0.000000001)","v":0.40174482735567063}]
[null,null,"Married Spouse Absent",{"$f":"SUM(Data!FC$3:$FC$100002)","v":1593},{"$f":"D5/($D$8+0.000000001)","v":5.3247317578632443E-2}]
[null,null,"Divorced",{"$f":"SUM(Data!FD$3:$FD$100002)","v":4278},{"$f":"D6/($D$8+0.000000001)","v":0.1429956212187003}]
[null,null,"Widowed",{"$f":"SUM(Data!FE$3:$FE$100002)","v":2872},{"$f":"D7/($D$8+0.000000001)","v":9.5998930374031621E-2}]
[null,null,"Individuals (15 and older)",{"$f":"SUM(D3:D7)","v":29917},{"$f":"SUM(E3:E7)","v":0.99999999999996669}]

{"sheet":"Mortage","index":12,"n_rows":5,"n_cols":5,"rows_kept":5,"cut":false,"hidden":false,"merged":[]}
[{"$f":"\"Mortage Information for \"& Data!L1","v":"Mortage Information for addresstotract"}]
[null,null,null,"Number","Percent"]
[null,null,"Housing Units with Mortgage",{"$f":"SUM(Data!EM$3:EM$100002)","v":4922},{"$f":"D3/($D$5+0.000000001)","v":0.53228073969930434}]
[null,null,"Housing Units without Mortgage",{"$f":"SUM(Data!EN$3:EN$100002)","v":4325},{"$f":"D4/($D$5+0.000000001)","v":0.46771926030058747}]
[null,null,"Total Units",{"$f":"SUM(D3:D4)","v":9247},{"$f":"SUM(E3:E4)","v":0.99999999999989186}]

{"sheet":"Race","index":13,"n_rows":10,"n_cols":5,"rows_kept":10,"cut":false,"hidden":false,"merged":[]}
[{"$f":"\"Population by Race for \"& Data!L1","v":"Population by Race for addresstotract"}]
[null,null,null,"Number","Percent"]
[null,null,"Asian",{"$f":"SUM(Data!FW$3:FW$100002)","v":103},{"$f":"D3/($D$10+0.000000001)","v":2.8530275331005803E-3}]
[null,null,"Black or African American",{"$f":"SUM(Data!FX$3:FX$100002)","v":7828},{"$f":"D4/($D$10+0.000000001)","v":0.21683009251564411}]
[null,null,"American Indian or Alaskan Native",{"$f":"SUM(Data!FZ$3:FZ$100002)","v":63},1.7450556755857919E-3]
[null,null,"Native Hawaiian or other Pacific Islander",{"$f":"SUM(Data!FY$3:FY$100002)","v":21},5.8168522519526399E-4]
[null,null,"White",{"$f":"SUM(Data!GC$3:GC$100002)","v":26419},0.73178771259207998]
[null,null,"Two or More Races",{"$f":"SUM(Data!GB$3:GB$100002)","v":458},{"$f":"D8/($D$10+0.000000001)","v":1.2686277768544328E-2}]
[null,null,"Other",{"$f":"SUM(Data!GA$3:GA$100002)","v":1210},3.3516148689822355E-2]
[null,null,"Total Population",{"$f":"SUM(D3:D9)","v":36102},{"$f":"SUM(E3:E9)","v":0.99999999999997247}]

{"sheet":"Rent","index":14,"n_rows":12,"n_cols":5,"rows_kept":12,"cut":false,"hidden":false,"merged":[]}
[{"$f":"\"Rent Distribution for \"& Data!L1","v":"Rent Distribution for addresstotract"}]
[null,null,null,"Number","Percent"]
[null,null,"Less than 250",{"$f":"SUM(Data!GD$3:$GD$100002)","v":285},{"$f":"D3/($D$12+0.000000001)","v":4.9120992761108387E-2}]
[null,null,"250 to 499",{"$f":"SUM(Data!GE$3:$GE$100002)","v":1178},{"$f":"D4/($D$12+0.000000001)","v":0.20303343674591467}]
[null,null,"500 to 749",{"$f":"SUM(Data!GF$3:$GF$100002)","v":1911},0.32936918304027413]
[null,null,"750 to 999",{"$f":"SUM(Data!GG$3:$GG$100002)","v":1096},0.18890037917956068]
[null,null,"1000 to 1249",{"$f":"SUM(Data!GH$3:$GH$100002)","v":362},6.2392278524635914E-2]
[null,null,"1250 to1499",{"$f":"SUM(Data!GI$3:$GI$100002)","v":335},5.7738710789373017E-2]
[null,null,"150 to 1999",{"$f":"SUM(Data!GJ$3:$GJ$100002)","v":257},4.4295070665280191E-2]
[null,null,"2000 Plus",{"$f":"SUM(Data!GK$3:$GK$100002)","v":70},{"$f":"D10/($D$12+0.000000001)","v":1.2064805239570481E-2}]
[null,null,"No Cash",{"$f":"SUM(Data!GL$3:$GL$100002)","v":308},5.3085143054110114E-2]
[null,null,"Total Rental Units",{"$f":"SUM(D3:D11)","v":5802},{"$f":"SUM(E3:E11)","v":0.99999999999982747}]

{"sheet":"School Enrollment","index":15,"n_rows":11,"n_cols":5,"rows_kept":11,"cut":false,"hidden":false,"merged":[]}
[{"$f":"\"School Enrollment Distribution for \"& Data!L1","v":"School Enrollment Distribution for addresstotract"}]
[null,null,null,"Number","Percent"]
[null,null,"Preschool",{"$f":"SUM(Data!GM$3:$GM$100002)","v":218},{"$f":"D3/($D$11+0.000000001)","v":6.2498208193570645E-3}]
[null,null,"Kindergarten",{"$f":"SUM(Data!GN$3:$GN$100002)","v":502},{"$f":"D4/($D$11+0.000000001)","v":1.4391789226225901E-2}]
[null,null,"Grades 1 to 4",{"$f":"SUM(Data!GO$3:$GO$100002)","v":1897},5.4384908689542898E-2]
[null,null,"Grades 5 to 8",{"$f":"SUM(Data!GP$3:$GP$100002)","v":1681},4.8192425675868004E-2]
[null,null,"Grades 9 to 12",{"$f":"SUM(Data!GQ$3:$GQ$100002)","v":1561},4.4752157334937516E-2]
[null,null,"College",{"$f":"SUM(Data!GR$3:$GR$100002)","v":1028},2.94716321206379E-2]
[null,null,"Grad School",{"$f":"SUM(Data!GS$3:$GS$100002)","v":379},1.0865514176772145E-2]
[null,null,"Not Enrolled",{"$f":"SUM(Data!GT$3:$GT$100002)","v":27615},0.79169175195663]
[null,null,"Total",{"$f":"SUM(D3:D10)","v":34881},{"$f":"SUM(E3:E10)","v":0.99999999999997147}]

{"sheet":"Age Distribution Female","index":16,"n_rows":20,"n_cols":5,"rows_kept":20,"cut":false,"hidden":false,"merged":[]}
[{"$f":"\"Female Age Population Distribution for \"& Data!L1","v":"Female Age Population Distribution for addresstotract"}]
[null,null,null,"Number","Percent"]
[null,null,"0 to 4",{"$f":"SUM(Data!Y$3:$Y$100002)","v":1021},{"$f":"D3/($D$17+0.000000001)","v":5.4015448100727226E-2}]
[null,null,"5 to 9",{"$f":"SUM(Data!Z$3:$Z$100002)","v":1143},{"$f":"D4/($D$17+0.000000001)","v":6.046979155644585E-2}]
[null,null,"0 to 14",{"$f":"SUM(Data!AA$3:$AA$100002)","v":911},4.8195958099669443E-2]
[null,null,"15 to 17",{"$f":"SUM(Data!AB$3:$AB100002)","v":628},3.3223997460584423E-2]
[null,null,"18 to 20",{"$f":"SUM(Data!AC$3:$AC$100002)","v":622},3.2906570733253995E-2]
[null,null,"21 to 24",{"$f":"SUM(Data!AD3:$AD$100002)","v":929},4.9148238281660712E-2]
[null,null,"25 to 34",{"$f":"SUM(Data!$AE$3:$AE$100002)","v":3018},0.1596656438472035]
[null,null,"35 to 44",{"$f":"SUM(Data!AF$3:$AF$100002)","v":2290},0.12115120093111199]
[null,null,"45 to 54",{"$f":"SUM(Data!AG$3:$AG$100002)","v":2014},0.10654957147391246]
[null,null,"55 to 61",{"$f":"SUM(Data!AH$3:$AH$100002)","v":1608},8.507036292455375E-2]
[null,null,"62 to 64",{"$f":"SUM(Data!AI$3:$AI$100002)","v":640},3.3858850915245271E-2]
[null,null,"65 to 74",{"$f":"SUM(Data!$AJ$3:AJ$100002)","v":1891},0.10004232356363876]
[null,null,"75 to84",{"$f":"SUM(Data!AK$3:$AK$100002)","v":1208},6.3908581102525452E-2]
[null,null,"85 Plus",{"$f":"SUM(Data!AL$3:$AL$100002)","v":979},5.1793461009414253E-2]
[null,null,"Total",{"$f":"SUM(D3:D16)","v":18902},{"$f":"SUM(E3:E16)","v":0.99999999999994704}]
[null,null,"Total Unique Tracts",{"$f":"COUNTA(Data!B3:B100000)","v":11}]
[null,null," Median Age Female",{"$f":"SUMPRODUCT(Data!$F$3:$F$100002,Data!$X$3:$X$100002*($X$3:$X$99953<>\"0\"))/SUMIF(Data!$X$3:$X$100002,\"<>0\",Data!$F$3:$F$100002)","v":{"$error":"#N/A"}}]
[null,null,"*May include tracts with no data"]

{"sheet":"Age Distribution Male","index":17,"n_rows":20,"n_cols":5,"rows_kept":20,"cut":false,"hidden":false,"merged":[]}
[{"$f":"\"Male Age Population Distribution for \"& Data!L1","v":"Male Age Population Distribution for addresstotract"}]
[null,null,null,"Number","Percent"]
[null,null,"0 to 4",{"$f":"SUM(Data!AN$3:$AN$100002)","v":717},{"$f":"D3/($D$17+0.000000001)","v":4.1686046511625482E-2}]
[null,null,"5 to 9",{"$f":"SUM(Data!AO$3:$AO$100002)","v":1390},{"$f":"D4/($D$17+0.000000001)","v":8.0813953488367396E-2}]
[null,null,"0 to 14",{"$f":"SUM(Data!AP$3:$AP$100002)","v":1003},5.8313953488368701E-2]
[null,null,"15 to 17",{"$f":"SUM(Data!AQ$3:$AQ100002)","v":518},3.0116279069765689E-2]
[null,null,"18 to 20",{"$f":"SUM(Data!AR$3:$AR$100002)","v":654},3.8023255813951273E-2]
[null,null,"21 to 24",{"$f":"SUM(Data!AS3:$AS$100002)","v":824},4.7906976744183261E-2]
[null,null,"25 to 34",{"$f":"SUM(Data!$AT$3:$AT$100002)","v":2662},0.1547674418604561]
[null,null,"35 to 44",{"$f":"SUM(Data!AU$3:$AU$100002)","v":2307},0.13412790697673638]
[null,null,"45 to 54",{"$f":"SUM(Data!AV$3:$AV$100002)","v":2152},0.12511627906976017]
[null,null,"55 to 61",{"$f":"SUM(Data!AW$3:$AW$100002)","v":1566},9.1046511627901686E-2]
[null,null,"62 to 64",{"$f":"SUM(Data!AX$3:$AX$100002)","v":569},3.3081395348835287E-2]
[null,null,"65 to 74",{"$f":"SUM(Data!$AY$3:AY$100002)","v":1734},0.10081395348836623]
[null,null,"75 to84",{"$f":"SUM(Data!AZ$3:$AZ$100002)","v":921},5.3546511627903859E-2]
[null,null,"85 Plus",{"$f":"SUM(Data!BA$3:$BA$100002)","v":183},1.0639534883720311E-2]
[null,null,"Total",{"$f":"SUM(D3:D16)","v":17200},{"$f":"SUM(E3:E16)","v":0.9999999999999416}]
[null,null,"Total Unique Tracts",{"$f":"COUNTA(Data!B3:B100000)","v":11}]
[null,null," Median Age Male",{"$f":"SUMPRODUCT(Data!$F$3:$F$100002,Data!$AM$3:$AM$100002*($AM$3:$AM$99953<>\"0\"))/SUMIF(Data!$AM$3:$AM$100002,\"<>0\",Data!$F$3:$F$100002)","v":{"$error":"#N/A"}}]
[null,null,"*May include tracts with no data"]

{"sheet":"Education Attainment Female","index":18,"n_rows":12,"n_cols":5,"rows_kept":12,"cut":false,"hidden":false,"merged":[]}
[{"$f":"\"Female Education Attainment Distribution for \"& Data!L1","v":"Female Education Attainment Distribution for addresstotract"}]
[null,null,null,"Number","Percent"]
[null,null,"No Schooling",{"$f":"SUM(Data!CP$3:$CP$100002)","v":92},{"$f":"D3/($D$11+0.000000001)","v":6.7409144196946989E-3}]
[null,null,"Nursery to Grade8",{"$f":"SUM(Data!CQ$3:$CQ$100002)","v":621},{"$f":"D4/($D$11+0.000000001)","v":4.5501172332939217E-2}]
[null,null,"Some High School",{"$f":"SUM(Data!CR$3:$CR$100002)","v":1246},9.1295427901517345E-2]
[null,null,"High School Graduate",{"$f":"SUM(Data!CS$3:$CS$100002)","v":4579},0.33550703399763077]
[null,null,"Some College",{"$f":"SUM(Data!CT$3:$CT$100002)","v":2798},0.20501172332941053]
[null,null,"Associate Degree",{"$f":"SUM(Data!CU$3:$CU$100002)","v":1285},9.415298944899661E-2]
[null,null,"Bachelors Degree",{"$f":"SUM(Data!CV$3:$CV$100002)","v":1916},0.14038686987103308]
[null,null,"Advanced Degree",{"$f":"SUM(Data!CW$3:$CW$100002)","v":1111},8.1403868698704474E-2]
[null,null,"Total (Age 25+)",{"$f":"SUM(D3:D10)","v":13648},{"$f":"SUM(E3:E10)","v":0.99999999999992673}]
[null,null,"Total Unique Tracts",{"$f":"COUNTA(Data!B3:B100000)","v":11}]

{"sheet":"Education Attainment Male","index":19,"n_rows":12,"n_cols":5,"rows_kept":12,"cut":false,"hidden":false,"merged":[]}
[{"$f":"\"Male Education Attainment Distribution for \"& Data!L1","v":"Male Education Attainment Distribution for addresstotract"}]
[null,null,null,"Number","Percent"]
[null,null,"No Schooling",{"$f":"SUM(Data!CY$3:$CY$100002)","v":146},{"$f":"D3/($D$11+0.000000001)","v":1.2072101868694222E-2}]
[null,null,"Nursery to Grade8",{"$f":"SUM(Data!CZ$3:$CZ$100002)","v":510},{"$f":"D4/($D$11+0.000000001)","v":4.2169670911192149E-2}]
[null,null,"Some High School",{"$f":"SUM(Data!DA$3:$DA$100002)","v":1755},0.14511327931204357]
[null,null,"High School Graduate",{"$f":"SUM(Data!DB$3:$DB$100002)","v":4110},0.33983793616666613]
[null,null,"Some College",{"$f":"SUM(Data!DC$3:$DC$100002)","v":2182},0.18042004299651229]
[null,null,"Associate Degree",{"$f":"SUM(Data!DD$3:$DD$100002)","v":699},5.7797254837104531E-2]
[null,null,"Bachelors Degree",{"$f":"SUM(Data!DE$3:$DE$100002)","v":1867},0.1543740697866583]
[null,null,"Advanced Degree",{"$f":"SUM(Data!DF$3:$DF$100002)","v":825},6.8215644121046123E-2]
[null,null,"Total (Age 25+)",{"$f":"SUM(D3:D10)","v":12094},{"$f":"SUM(E3:E10)","v":0.99999999999991729}]
[null,null,"Total Unique Tracts",{"$f":"COUNTA(Data!B3:B100000)","v":11}]

{"sheet":"Household Income By Age","index":20,"n_rows":9,"n_cols":4,"rows_kept":9,"cut":false,"hidden":false,"merged":[]}
[{"$f":"\"Household Median Income By Age for \"& Data!L1","v":"Household Median Income By Age for addresstotract"}]
[null,null,null,"Number"]
[null,null,"Under 25 Years",{"$f":"SUMPRODUCT(Data!$F$3:$F$100002,Data!$DP$3:$DP$100002*($DP$3:$DP$100002<>\"0\"))/SUMIF(Data!$DP$3:$DP$100002,\"<>0\",Data!$F$3:$F$100002)","v":31692.25}]
[null,null,"25 to 44 Years",{"$f":"SUMPRODUCT(Data!$F$3:$F$100002,Data!$DQ$3:$DQ$100002*($DQ$3:$DQ$100002<>\"0\"))/SUMIF(Data!$DQ$3:$DQ$100002,\"<>0\",Data!$F$3:$F$100002)","v":45925.7}]
[null,null,"45 to 64 Years",{"$f":"SUMPRODUCT(Data!$F$3:$F$100002,Data!$DR$3:$DR$100002*($DR$3:$DR$100002<>\"0\"))/SUMIF(Data!$DR$3:$DR$100002,\"<>0\",Data!$F$3:$F$100002)","v":55620.111111111109}]
[null,null,"65 Years And Over",{"$f":"SUMPRODUCT(Data!$F$3:$F$100002,Data!$DS$3:$DS$100002*($DS$3:$DS$100002<>\"0\"))/SUMIF(Data!$DS$3:$DS$100002,\"<>0\",Data!$F$3:$F$100002)","v":27709.727272727272}]
[]
[null,null,"Total Unique Tracts",{"$f":"COUNTA(Data!B3:B100000)","v":11}]
[null,null,"Household Median Income",{"$f":"SUMPRODUCT(Data!$F$3:$F$100002,Data!$DO$3:$DO$100002*($DO$3:$DO$100002<>\"0\"))/SUMIF(Data!$DO$3:$DO$100002,\"<>0\",Data!$F$3:$F$100002)","v":37989.727272727272}]

{"sheet":"Household Size Owner","index":21,"n_rows":11,"n_cols":5,"rows_kept":11,"cut":false,"hidden":false,"merged":[]}
[{"$f":"\"Household Size Owner Occupied for \"& Data!L1","v":"Household Size Owner Occupied for addresstotract"}]
[null,null,null,"Number","Percent"]
[null,null,"1 Person",{"$f":"SUM(Data!DU$3:$DU$100002)","v":3115},{"$f":"D3/($D$10+0.000000001)","v":0.33686601059799537}]
[null,null,"2 Person",{"$f":"SUM(Data!DV$3:$DV$100002)","v":3954},0.42759813993723067]
[null,null,"3 Person",{"$f":"SUM(Data!DW$3:$DW$100002)","v":1121},0.12122850654264937]
[null,null,"4 Person",{"$f":"SUM(Data!DX$3:$DX$100002)","v":744},8.0458527089858276E-2]
[null,null,"5 Person",{"$f":"SUM(Data!DY$3:$DY$100002)","v":254},2.7468368119387101E-2]
[null,null,"6 Person",{"$f":"SUM(Data!DZ$3:$DZ$100002)","v":42},4.5420136260403863E-3]
[null,null,"7+ Person",{"$f":"SUM(Data!EA$3:$EA$100002)","v":17},1.8384340867306328E-3]
[null,null,"Total Owner Households",{"$f":"SUM(D3:D9)","v":9247},{"$f":"SUM(E3:E9)","v":0.99999999999989186}]
[null,null,"Total Unique Tracts",{"$f":"COUNTA(Data!B3:B100000)","v":11}]

{"sheet":"Household Size Renter","index":22,"n_rows":11,"n_cols":5,"rows_kept":11,"cut":false,"hidden":false,"merged":[]}
[{"$f":"\"Household Size Renter Occupied for \"& Data!L1","v":"Household Size Renter Occupied for addresstotract"}]
[null,null,null,"Number","Percent"]
[null,null,"1 Person",{"$f":"SUM(Data!EC$3:$EC$100002)","v":2399},{"$f":"D3/($D$10+0.000000001)","v":0.4134781109961369}]
[null,null,"2 Person",{"$f":"SUM(Data!ED$3:$ED$100002)","v":1279},0.22044122716300921]
[null,null,"3 Person",{"$f":"SUM(Data!EE$3:$EE$100002)","v":1026},0.17683557393999019]
[null,null,"4 Person",{"$f":"SUM(Data!EF$3:$EF$100002)","v":649},0.11185798000687489]
[null,null,"5 Person",{"$f":"SUM(Data!EG$3:$EG$100002)","v":261},4.4984488107541368E-2]
[null,null,"6 Person",{"$f":"SUM(Data!EH$3:$EH$100002)","v":107},1.8441916580486307E-2]
[null,null,"7+ Person",{"$f":"SUM(Data!EI$3:$EI$100002)","v":81},1.39607032057887E-2]
[null,null,"Total Renter Households",{"$f":"SUM(D3:D9)","v":5802},{"$f":"SUM(E3:E9)","v":0.99999999999982758}]
[null,null,"Total Unique Tracts",{"$f":"COUNTA(Data!B3:B100000)","v":11}]

{"sheet":"Income Population Female","index":23,"n_rows":13,"n_cols":5,"rows_kept":13,"cut":false,"hidden":false,"merged":[]}
[{"$f":"\"Female Income Population Distribution for \"& Data!L1","v":"Female Income Population Distribution for addresstotract"}]
[null,null,null,"Number","Percent"]
[null,null,"<10K*",{"$f":"SUM(Data!BN$3:$BN$100002)","v":1620},{"$f":"D3/($D$11+0.000000001)","v":0.1957940536620503}]
[null,null,"10 to 19K",{"$f":"SUM(Data!BO$3:$BO$100002)","v":1582},{"$f":"D4/($D$11+0.000000001)","v":0.19120135363787874}]
[null,null,"20 to 29K",{"$f":"SUM(Data!BP$3:$BP$100002)","v":1673},0.2021996615905001]
[null,null,"30 to 39K",{"$f":"SUM(Data!BQ$3:$BQ$100002)","v":1262},0.15252598501327622]
[null,null,"40 to 49K",{"$f":"SUM(Data!BR$3:$BR$100002)","v":680},8.2185158327280364E-2]
[null,null,"50 to 74K",{"$f":"SUM(Data!BS$3:$BS$100002)","v":930},0.1124002900652511]
[null,null,"75 to 99K",{"$f":"SUM(Data!BT$3:$BT$100002)","v":348},4.2059463379255251E-2]
[null,null,">100K",{"$f":"SUM(Data!BU$3:$BU$100002)","v":179},2.1634034324387038E-2]
[null,null,"Total",{"$f":"SUM(D3:D10)","v":8274},{"$f":"SUM(E3:E10)","v":0.9999999999998791}]
[null,null,"Total Unique Tracts",{"$f":"COUNTA(Data!B3:B100000)","v":11}]
[null,null,"Median Female Income",{"$f":"SUMPRODUCT(Data!$F$3:$F$100002,Data!$BM$3:$BM$100002*($BM$3:$BM$99980<>\"0\"))/SUMIF(Data!$BM$3:$BM$100002,\"<>0\",Data!$F$3:$F$100002)","v":{"$error":"#N/A"}}]

{"sheet":"Income Population Male","index":24,"n_rows":13,"n_cols":5,"rows_kept":13,"cut":false,"hidden":false,"merged":[]}
[{"$f":"\"Male Income Population Distribution for \"& Data!L1","v":"Male Income Population Distribution for addresstotract"}]
[null,null,null,"Number","Percent"]
[null,null,"<10K*",{"$f":"SUM(Data!BX$3:$BX$100002)","v":1197},{"$f":"D3/($D$11+0.000000001)","v":0.13591461337570843}]
[null,null,"10 to 19K",{"$f":"SUM(Data!BY$3:$BY$100002)","v":1296},{"$f":"D4/($D$11+0.000000001)","v":0.14715567162482715}]
[null,null,"20 to 29K",{"$f":"SUM(Data!BZ$3:$BZ$100002)","v":1080},0.12262972635402263]
[null,null,"30 to 39K",{"$f":"SUM(Data!CA$3:$CA$100002)","v":1224},0.13898035653455898]
[null,null,"40 to 49K",{"$f":"SUM(Data!CB$3:$CB$100002)","v":1196},0.13580106733278802]
[null,null,"50 to 74K",{"$f":"SUM(Data!CC$3:$CC$100002)","v":1476},0.16759395935049759]
[null,null,"75 to 99K",{"$f":"SUM(Data!CD$3:$CD$100002)","v":806},9.1518110593835411E-2]
[null,null,">100K",{"$f":"SUM(Data!CE$3:$CE$100002)","v":532},6.0406494833648183E-2]
[null,null,"Total",{"$f":"SUM(D3:D10)","v":8807},{"$f":"SUM(E3:E10)","v":0.99999999999988654}]
[null,null,"Total Unique Tracts",{"$f":"COUNTA(Data!B3:B100000)","v":11}]
[null,null,"Median Male Income",{"$f":"SUMPRODUCT(Data!$F$3:$F$100002,Data!$BW$3:$BW$100002*($BW$3:$BW$99980<>\"0\"))/SUMIF(Data!$BW$3:$BW$100002,\"<>0\",Data!$F$3:$F$100002)","v":{"$error":"#N/A"}}]

{"sheet":"Marital Status Female","index":25,"n_rows":8,"n_cols":5,"rows_kept":8,"cut":false,"hidden":false,"merged":[]}
[{"$f":"\"Female Marital Status for \"& Data!L1","v":"Female Marital Status for addresstotract"}]
[null,null,null,"Number","Percent"]
[null,null,"Never Married",{"$f":"SUM(Data!FG$3:$FG$100002)","v":4576},{"$f":"D3/($D$8+0.000000001)","v":0.28912617678648578}]
[null,null,"Married Spouse Present",{"$f":"SUM(Data!FH$3:$FH$100002)","v":5916},{"$f":"D4/($D$8+0.000000001)","v":0.37379162191189902}]
[null,null,"Married Spouse Absent",{"$f":"SUM(Data!FI$3:$FI$100002)","v":749},{"$f":"D5/($D$8+0.000000001)","v":4.7324192835025758E-2}]
[null,null,"Divorced",{"$f":"SUM(Data!FJ$3:$FJ$100002)","v":2251},{"$f":"D6/($D$8+0.000000001)","v":0.14222531117709342}]
[null,null,"Widowed",{"$f":"SUM(Data!FK$3:$FK$100002)","v":2335},{"$f":"D7/($D$8+0.000000001)","v":0.14753269728943277}]
[null,null,"Females (15 and older)",{"$f":"SUM(D3:D7)","v":15827},{"$f":"SUM(E3:E7)","v":0.99999999999993661}]

{"sheet":"Marital Status Male","index":26,"n_rows":8,"n_cols":5,"rows_kept":8,"cut":false,"hidden":false,"merged":[]}
[{"$f":"\"Male Marital Status for \"& Data!L1","v":"Male Marital Status for addresstotract"}]
[null,null,null,"Number","Percent"]
[null,null,"Never Married",{"$f":"SUM(Data!FM$3:$FM$100002)","v":4579},{"$f":"D3/($D$8+0.000000001)","v":0.32498225691977822}]
[null,null,"Married Spouse Present",{"$f":"SUM(Data!FN$3:$FN$100002)","v":6103},{"$f":"D4/($D$8+0.000000001)","v":0.43314407381118286}]
[null,null,"Married Spouse Absent",{"$f":"SUM(Data!FO$3:$FO$100002)","v":844},{"$f":"D5/($D$8+0.000000001)","v":5.9900638750882904E-2}]
[null,null,"Divorced",{"$f":"SUM(Data!FP$3:$FP$100002)","v":2027},{"$f":"D6/($D$8+0.000000001)","v":0.1438608942512318}]
[null,null,"Widowed",{"$f":"SUM(Data!FQ$3:$FQ$100002)","v":537},{"$f":"D7/($D$8+0.000000001)","v":3.8112136266853218E-2}]
[null,null,"Females (15 and older)",{"$f":"SUM(D3:D7)","v":14090},{"$f":"SUM(E3:E7)","v":0.99999999999992906}]

{"sheet":"School Enrollment Female","index":27,"n_rows":11,"n_cols":5,"rows_kept":11,"cut":false,"hidden":false,"merged":[]}
[{"$f":"\"Female School Enrollment Distribution for \"& Data!L1","v":"Female School Enrollment Distribution for addresstotract"}]
[null,null,null,"Number","Percent"]
[null,null,"Preschool",{"$f":"SUM(Data!GU$3:$GU$100002)","v":117},{"$f":"D3/($D$11+0.000000001)","v":6.4250411861610963E-3}]
[null,null,"Kindergarten",{"$f":"SUM(Data!GV$3:$GV$100002)","v":247},{"$f":"D4/($D$11+0.000000001)","v":1.3563975837451205E-2}]
[null,null,"Grades 1 to 4",{"$f":"SUM(Data!GW$3:$GW$100002)","v":840},4.6128500823720692E-2]
[null,null,"Grades 5 to 8",{"$f":"SUM(Data!GX$3:$GX$100002)","v":762},4.1845140032946627E-2]
[null,null,"Grades 9 to 12",{"$f":"SUM(Data!GY$3:$GY$100002)","v":760},4.173531026908063E-2]
[null,null,"College",{"$f":"SUM(Data!GZ$3:$GZ$100002)","v":638},3.5035694673254528E-2]
[null,null,"Grad School",{"$f":"SUM(Data!HA$3:$HA$100002)","v":219},1.202635914332718E-2]
[null,null,"Not Enrolled",{"$f":"SUM(Data!HB$3:$HB$100002)","v":14627},0.80323997803400304]
[null,null,"Total",{"$f":"SUM(D3:D10)","v":18210},{"$f":"SUM(E3:E10)","v":0.99999999999994493}]

{"sheet":"School Enrollment Male","index":28,"n_rows":11,"n_cols":5,"rows_kept":11,"cut":false,"hidden":false,"merged":[]}
[{"$f":"\"Male School Enrollment Distribution for \"& Data!L1","v":"Male School Enrollment Distribution for addresstotract"}]
[null,null,null,"Number","Percent"]
[null,null,"Preschool",{"$f":"SUM(Data!HC$3:$HC$100002)","v":101},{"$f":"D3/($D$11+0.000000001)","v":6.0584248095491532E-3}]
[null,null,"Kindergarten",{"$f":"SUM(Data!HD$3:$HD$100002)","v":255},{"$f":"D4/($D$11+0.000000001)","v":1.529602303401024E-2}]
[null,null,"Grades 1 to 4",{"$f":"SUM(Data!HE$3:$HE$100002)","v":1057},6.3403515086073808E-2]
[null,null,"Grades 5 to 8",{"$f":"SUM(Data!HF$3:$HF$100002)","v":919},5.5125667326491802E-2]
[null,null,"Grades 9 to 12",{"$f":"SUM(Data!HG$3:$HG$100002)","v":801},4.8047507648008636E-2]
[null,null,"College",{"$f":"SUM(Data!HH$3:$HH$100002)","v":390},2.3393917581427424E-2]
[null,null,"Grad School",{"$f":"SUM(Data!HI$3:$HI$100002)","v":160},9.5975046487907379E-3]
[null,null,"Not Enrolled",{"$f":"SUM(Data!HJ$3:$HJ$100002)","v":12988},0.77907743986558819]
[null,null,"Total",{"$f":"SUM(D3:D10)","v":16671},{"$f":"SUM(E3:E10)","v":0.99999999999994005}]

{"sheet":"Tract Housing","index":29,"n_rows":11,"n_cols":5,"rows_kept":11,"cut":false,"hidden":false,"merged":[]}
[{"$f":"\"House Value Distribution for \"& Data!L1","v":"House Value Distribution for addresstotract"}]
[null,null,null,"Number","Percent"]
[null,null,"0-100K*",{"$f":"SUMIFS(Data!$F$3:$F$100000,Data!$EO$3:$EO$100000,\"<=100000\")+SUMIFS(Data!$F$3:$F$100000,Data!$EO$3:$EO$100000,\"\")","v":4},{"$f":"D3/($D$9+0.000000001)","v":0.36363636360330576}]
[null,null,">100K to 150K",{"$f":"SUMIFS(Data!$F$3:$F$100000,Data!$EO$3:$EO$100000,\"<=150000\",Data!$EO$3:$EO$100000,\">100000\")","v":6},{"$f":"D4/($D$9+0.000000001)","v":0.54545454540495864}]
[null,null,">150K to 250K",{"$f":"SUMIFS(Data!$F$3:$F$100000,Data!$EO$3:$EO$100000,\"<=250000\",Data!$EO$3:$EO$100000,\">150000\")","v":1},9.0909090900826439E-2]
[null,null,">250K-500K",{"$f":"SUMIFS(Data!$F$3:$F$100000,Data!$EO$3:$EO$100000,\"<=500000\",Data!$EO$3:$EO$100000,\">250000\")","v":0},0]
[null,null,">500K - 750K",{"$f":"SUMIFS(Data!$F$3:$F$100000,Data!$EO$3:$EO$100000,\"<=750000\",Data!$EO$3:$EO$100000,\">500000\")","v":0},0]
[null,null,">750K",{"$f":"SUMIFS(Data!$F$3:$F$100000,Data!$EO$3:$EO$100000,\">750000\")","v":0},0]
[null,null,"Total Tracts",{"$f":"SUM(D3:D8)","v":11},{"$f":"SUM(E3:E8)","v":0.99999999990909083}]
[null,null,"Total Unique Tracts",{"$f":"COUNTA(Data!B3:B100000)","v":11}]
[null,null,"*May include tracts with no data"]

{"sheet":"Definitions","index":30,"n_rows":216,"n_cols":8,"rows_kept":216,"cut":false,"hidden":false,"merged":[]}
["CDXStreamer Census Tract Data Definitions"]
[null,1,"Tract Number","Tract identification",null,null,{"$f":"MID(B2,8,1000)","v":""},{"$f":"TRIM(G2)","v":""}]
[null,{"$f":"B2+1","v":2},"Census Tract","Census tract FIPS code",null,null,null,{"$f":"TRIM(G3)","v":""}]
[null,{"$f":"B3+1","v":3},"Census Block","Census Block FIPS code"]
[null,{"$f":"B4+1","v":4},"County","County Name",null,null,null,""]
[null,{"$f":"B5+1","v":5},"State","2 character state or territory designation",null,null,null,""]
[null,6,"Age Median","Median age for the population",null,null,null,""]
[null,7,"Age 0 - 4","Population under 5 years",null,null,null,""]
[null,8,"Age 5 - 9","Population between the ages 5 and 9",null,null,null,""]
[null,9,"Age 10 - 14","Population between the ages 10 and 14",null,null,null,""]
[null,10,"Age 15 - 17","Population between the ages 15 and 17",null,null,null,""]
[null,11,"Age 18 - 20","Population between the ages 18 and 20",null,null,null,""]
[null,12,"Age 21 - 24","Population between the ages 21 and 24",null,null,null,""]
[null,13,"Age 25 - 34","Population between the ages 25 and 34",null,null,null,""]
[null,14,"Age 35 - 44","Population between the ages 35 and 44",null,null,null,""]
[null,15,"Age 45 - 54","Population between the ages 45 and 54",null,null,null,""]
[null,16,"Age 55 - 61","Population between the ages 55 and 61",null,null,null,""]
[null,17,"Age 62 - 64","Population between the ages 62 and 64",null,null,null,""]
[null,18,"Age 65 - 74","Population between the ages 65 and 74",null,null,null,""]
[null,19,"Age 75 - 84","Population between the ages 75 and 84",null,null,null,""]
[null,20,"Age 85+","Population age 85 and over",null,null,null,""]
[null,21,"Age Median Female","Median age for the female population",null,null,null,""]
[null,22,"Age Female 0 - 4","Female population under 5 years",null,null,null,""]
[null,23,"Age Female 5 - 9","Female population between the ages 5 and 9",null,null,null,""]
[null,24,"Age Female 10 - 14","Female population between the ages 10 and 14",null,null,null,""]
[null,25,"Age Female 15 - 17","Female population between the ages 15 and 17",null,null,null,""]
[null,26,"Age Female 18 - 20","Female population between the ages 18 and 20",null,null,null,""]
[null,27,"Age Female 21 - 24","Female population between the ages 21 and 24",null,null,null,""]
[null,28,"Age Female 25 - 34","Female population between the ages 25 and 34",null,null,null,""]
[null,29,"Age Female 35 - 44","Female population between the ages 35 and 44",null,null,null,""]
[null,30,"Age Female 45 - 54","Female population between the ages 45 and 54",null,null,null,""]
[null,31,"Age Female 55 - 61","Female population between the ages 55 and 61",null,null,null,""]
[null,32,"Age Female 62 - 64","Female population between the ages 62 and 64",null,null,null,""]
[null,33,"Age Female 65 - 74","Female population between the ages 65 and 74",null,null,null,""]
[null,34,"Age Female 75 - 84","Female population between the ages 75 and 84",null,null,null,""]
[null,35,"Age Female 85+","Female population age 85 and over",null,null,null,""]
[null,36,"Age Median Male","Median age for the Male population",null,null,null,""]
[null,37,"Age Male 0 - 4","Male population under 5 years",null,null,null,""]
[null,38,"Age Male 5 - 9","Male population between the ages 5 and 9",null,null,null,""]
[null,39,"Age Male 10 - 14","Male population between the ages 10 and 14",null,null,null,""]
[null,40,"Age Male 15 - 17","Male population between the ages 15 and 17",null,null,null,""]
[null,41,"Age Male 18 - 20","Male population between the ages 18 and 20",null,null,null,""]
[null,42,"Age Male 21 - 24","Male population between the ages 21 and 24",null,null,null,""]
[null,43,"Age Male 25 - 34","Male population between the ages 25 and 34",null,null,null,""]
[null,44,"Age Male 35 - 44","Male population between the ages 35 and 44",null,null,null,""]
[null,45,"Age Male 45 - 54","Male population between the ages 45 and 54",null,null,null,""]
[null,46,"Age Male 55 - 61","Male population between the ages 55 and 61",null,null,null,""]
[null,47,"Age Male 62 - 64","Male population between the ages 62 and 64",null,null,null,""]
[null,48,"Age Male 65 - 74","Male population between the ages 65 and 74",null,null,null,""]
[null,49,"Age Male 75 - 84","Male population between the ages 75 and 84",null,null,null,""]
[null,50,"Age Male 85+","Male population age 85 and over",null,null,null,""]
[null,51,"Earnings Population","Population 16 years and over with earnings",null,null,null,""]
[null,52,"Earnings Median","Median earnings for the population 16 years and over with earnings",null,null,null,""]
[null,53,"Earnings Less than 10K","Population who made less than $10,000 for the population 16 years and over with earnings",null,null,null,""]
[null,54,"Earnings 10-19K","Population who made between $10,000 and $19,999 for the population 16 years and over with earnings",null,null,null,""]
[null,55,"Earnings 20-29K","Population who made between $20,000 and $29,999 for the population 16 years and over with earnings",null,null,null,""]
[null,56,"Earnings 30-39K","Population who made between $30,000 and $39,999 for the population 16 years and over with earnings",null,null,null,""]
[null,57,"Earnings 40-49K","Population who made between $40,000 and $49,999 for the population 16 years and over with earnings",null,null,null,""]
[null,58,"Earnings 50-74K","Population who made between $50,000 and $74,999 for the population 16 years and over with earnings",null,null,null,""]
[null,59,"Earnings 75-99K","Population who made between $75,000 and $99,999 for the population 16 years and over with earnings",null,null,null,""]
[null,60,"Earnings 100K+","Population who made $100,000 and over for the population 16 years and over with earnings",null,null,null,""]
[null,61,"Earnings Female Population","Female population 16 years and over with earnings",null,null,null,""]
[null,62,"Earnings Median Female","Median earnings for the female population 16 years and over with earnings",null,null,null,""]
[null,63,"Earnings Female Less than 10K","Females who made less than $10,000 for the population 16 years and over with earnings",null,null,null,""]
[null,64,"Earnings Female 10-19K","Females who made between $10,000 and $19,999 for the population 16 years and over with earnings",null,null,null,""]
[null,65,"Earnings Female 20-29K","Females who made between $20,000 and $29,999 for the population 16 years and over with earnings",null,null,null,""]
[null,66,"Earnings Female 30-39K","Females who made between $30,000 and $39,999 for the population 16 years and over with earnings",null,null,null,""]
[null,67,"Earnings Female 40-49K","Females who made between $40,000 and $49,999 for the population 16 years and over with earnings",null,null,null,{"$f":"TRIM(G68)","v":""}]
[null,{"$f":"B68+1","v":68},"Earnings Female 50-74K","Females who made between $50,000 and $74,999 for the population 16 years and over with earnings",null,null,null,""]
[null,69,"Earnings Female 75-99K","Females who made between $75,000 and $99,999 for the population 16 years and over with earnings",null,null,null,""]
[null,70,"Earnings Female 100K+","Females who made $100,000 and over for the population 16 years and over with earnings",null,null,null,""]
[null,71,"Earnings Male Population","Male population 16 years and over with earnings",null,null,null,""]
[null,72,"Earnings Median Male","Median earnings for the male population 16 years and over with earnings",null,null,null,""]
[null,73,"Earnings Male Less than 10K","Males who made less than $10,000 for the population 16 years and over with earnings",null,null,null,""]
[null,74,"Earnings Male 10-19K","Males who made between $10,000 and $19,999 for the population 16 years and over with earnings",null,null,null,""]
[null,75,"Earnings Male 20-29K","Males who made between $20,000 and $29,999 for the population 16 years and over with earnings",null,null,null,""]
[null,76,"Earnings Male 30-39K","Males who made between $30,000 and $39,999 for the population 16 years and over with earnings",null,null,null,""]
[null,77,"Earnings Male 40-49K","Males who made between $40,000 and $49,999 for the population 16 years and over with earnings",null,null,null,""]
[null,78,"Earnings Male 50-74K","Males who made between $50,000 and $74,999 for the population 16 years and over with earnings",null,null,null,""]
[null,79,"Earnings Male 75-99K","Males who made between $75,000 and $99,999 for the population 16 years and over with earnings",null,null,null,""]
[null,80,"Earnings Male 100K+","Males who made $100,000 and over for the population 16 years and over with earnings",null,null,null,""]
[null,81,"Education Attain Population 25+ Years","Total Population 25 years and over",null,null,null,""]
[null,82,"Education Attain No Schooling","Total who completed no schooling for the population 25 years and over",null,null,null,""]
[null,83,"Education Attain Nursery to Grade 8","Total whose highest educational attainment was nursery to grade 8 for the population 25 years and over",null,null,null,""]
[null,84,"Education Attain Some High School","Total whose highest educational attainment was some high school  for the population 25 years and over",null,null,null,""]
[null,85,"Education Attain High School Grad","Total whose highest educational attainment was graduation from high school or equivalency for the population 25 years and over",null,null,null,""]
[null,86,"Education Attain Some College","Total whose highest educational attainment was some college for the population 25 years and over",null,null,null,""]
[null,87,"Education Attain Associate Degree","Total whose highest educational attainment was an associate degree for the population 25 years and over",null,null,null,""]
[null,88,"Education Attain Bachelors Degree","Total whose highest educational attainment was a bachelors degree for the population 25 years and over",null,null,null,""]
[null,89,"Education Attain Advanced Degree","Total whose highest educational attainment was an advanced degree for the population 25 years and over",null,null,null,""]
[null,90,"Education Attain Population Female 25+ Years","Female Population 25 years and over",null,null,null,""]
[null,91,"Education Attain Female No Schooling","Females who completed no schooling for the population 25 years and over",null,null,null,""]
[null,92,"Education Attain Female Nursery to Grade 8","Females whose highest educational attainment was nursery to grade 8 for the population 25 years and over",null,null,null,""]
[null,93,"Education Attain Female Some High School","Females whose highest educational attainment was some high school  for the population 25 years and over",null,null,null,""]
[null,94,"Education Attain Female High School Grad","Females whose highest educational attainment was graduation from high school or equivalency for the population 25 years and over",null,null,null,""]
[null,95,"Education Attain Female Some College","Females whose highest educational attainment was some college for the population 25 years and over",null,null,null,""]
[null,96,"Education Attain Female Associate Degree","Females whose highest educational attainment was an associate degree for the population 25 years and over",null,null,null,""]
[null,97,"Education Attain Female Bachelors Degree","Females whose highest educational attainment was a bachelors degree for the population 25 years and over",null,null,null,""]
[null,98,"Education Attain Female Advanced Degree","Females whose highest educational attainment was an advanced degree for the population 25 years and over",null,null,null,""]
[null,99,"Education Attain Population Male 25+ Years","Male Population 25 years and over",null,null,null,""]
[null,100,"Education Attain Male No Schooling","Males who completed no schooling for the population 25 years and over",null,null,null,""]
[null,101,"Education Attain Male Nursery to Grade 8","Males whose highest educational attainment was nursery to grade 8 for the population 25 years and over",null,null,null,""]
[null,102,"Education Attain Male Some High School","Males whose highest educational attainment was some high school  for the population 25 years and over",null,null,null,""]
[null,103,"Education Attain Male High School Grad","Males whose highest educational attainment was graduation from high school or equivalency for the population 25 years and over",null,null,null,""]
[null,104,"Education Attain Male Some College","Males whose highest educational attainment was some college for the population 25 years and over",null,null,null,""]
[null,105,"Education Attain Male Associate Degree","Males whose highest educational attainment was an associate degree for the population 25 years and over",null,null,null,""]
[null,106,"Education Attain Male Bachelors Degree","Males whose highest educational attainment was a bachelors degree for the population 25 years and over",null,null,null,""]
[null,107,"Education Attain Male Advanced Degree","Males whose highest educational attainment was an advanced degree for the population 25 years and over",null,null,null,""]
[null,108,"Households Total","Total number of households",null,null,null,""]
[null,109,"Household Income 0-24K","Number of households with total income of less than $24,999",null,null,null,""]
[null,110,"Household Income 25-49K","Number of households with total income between $25,000 and $49,999",null,null,null,""]
[null,111,"Household Income 50-74K","Number of households with total income between $50,000 and $74,999",null,null,null,""]
[null,112,"Household Income 75-99K","Number of households with total income between $75,000 and $99,999",null,null,null,""]
[null,113,"Household Income 100-149K","Number of households with total income between $100,000 and $149,999",null,null,null,""]
[null,114,"Household Income 150-199K","Number of households with total income between $150,000 and $199,999",null,null,null,""]
[null,115,"Household Income 200K+","Number of households with total income of $200,000 and over",null,null,null,""]
[null,116,"Household Income Median","Median income of all households",null,null,null,""]
[null,117,"Household Income Median under 25 years","Median household income where the householder is under 25 years",null,null,null,""]
[null,118,"Household Income Median 25-44 years","Median household income where the householder is between 25 and 44 years",null,null,null,""]
[null,119,"Household Income Median 45-64 years","Median household income where the householder is between 45 and 64 years",null,null,null,""]
[null,120,"Household Income Median 65 years and over","Median household income where the householder is 65 years and over",null,null,null,""]
[null,121,"Households Owner-Occuppied","Total number of owner-occupied housing units",null,null,null,""]
[null,122,"Household Size Owner Occupied 1-Person","For owner-occupied housing units, those with a 1-person household",null,null,null,""]
[null,123,"Household Size Owner Occupied 2-Person","For owner-occupied housing units, those with a 2-person household",null,null,null,""]
[null,124,"Household Size Owner Occupied 3-Person","For owner-occupied housing units, those with a 3-person household",null,null,null,""]
[null,125,"Household Size Owner Occupied 4-Person","For owner-occupied housing units, those with a 4-person household",null,null,null,""]
[null,126,"Household Size Owner Occupied 5-Person","For owner-occupied housing units, those with a 5-person household",null,null,null,""]
[null,127,"Household Size Owner Occupied 6-Person","For owner-occupied housing units, those with a 6-person household",null,null,null,""]
[null,128,"Household Size Owner Occupied 7+ Person","For owner-occupied housing units, those with a 7 and over -person household",null,null,null,""]
[null,129,"Households Renter-Occupied","Total number of renter-occupied housing units",null,null,null,""]
[null,130,"Household Size Renter Occupied 1-Person","For renter-occupied housing units, those with a 1-person household",null,null,null,""]
[null,131,"Household Size Renter Occupied 2-Person","For renter-occupied housing units, those with a 2-person household",null,null,null,{"$f":"TRIM(G132)","v":""}]
[null,{"$f":"B132+1","v":132},"Household Size Renter Occupied 3-Person","For renter-occupied housing units, those with a 3-person household",null,null,null,""]
[null,133,"Household Size Renter Occupied 4-Person","For renter-occupied housing units, those with a 4-person household",null,null,null,""]
[null,134,"Household Size Renter Occupied 5-Person","For renter-occupied housing units, those with a 5-person household",null,null,null,""]
[null,135,"Household Size Renter Occupied 6-Person","For renter-occupied housing units, those with a 6-person household",null,null,null,""]
[null,136,"Household Size Renter Occupied 7+ Person","For renter-occupied housing units, those with a 7 and over -person household",null,null,null,""]
[null,137,"Household Size Average","Average number of people per housing unit",null,null,null,""]
[null,138,"Household Size Average Owner-Occupied","Average number of people in an owner-occupied housing unit",null,null,null,""]
[null,139,"Household Size Average Renter-Occupied","Average number of people in an renter-occupied housing unit",null,null,null,""]
[null,140,"Housing Units with Mortgage","Owner-occupied housing units with a mortgage",null,null,null,""]
[null,141,"Housing Units without Mortgage","Owner-occupied housing units without a mortgage",null,null,null,""]
[null,142,"Housing Value Median","Median value of owner-occupied housing units",null,null,null,""]
[null,143,"Housing Value Less than 50K","Owner-occupied housing units with a value of less than $50,000",null,null,null,""]
[null,144,"Housing Value 50-99K","Owner-occupied housing units with a value between $50,000 and $99,999",null,null,null,""]
[null,145,"Housing Value 100-149K","Owner-occupied housing units with a value between $100,000 and $149,999",null,null,null,""]
[null,146,"Housing Value 150-199K","Owner-occupied housing units with a value between $150,000 and $199,999",null,null,null,""]
[null,147,"Housing Value 200-299K","Owner-occupied housing units with a value between $200,000 and $299,999",null,null,null,""]
[null,148,"Housing Value 300-399K","Owner-occupied housing units with a value between $300,000 and $399,999",null,null,null,""]
[null,149,"Housing Value 400-499K","Owner-occupied housing units with a value between $400,000 and $499,999",null,null,null,""]
[null,150,"Housing Value 500-749K","Owner-occupied housing units with a value between $500,000 and $749,999",null,null,null,""]
[null,151,"Housing Value 750-999K","Owner-occupied housing units with a value between $750,000 and $999,999",null,null,null,""]
[null,152,"Housing Value 1 MM+","Owner-occupied housing units with a value of $1,000,000 and over",null,null,null,""]
[null,153,"Marital Status Population 15+ Years","Total population 15 years and over",null,null,null,""]
[null,154,"Marital Status Never Married","Total who never married, for the population 15 years and over",null,null,null,""]
[null,155,"Marital Status Married/Spouse Present","Total who are married with spouse present, for the population 15 years and over",null,null,null,""]
[null,156,"Marital Status Married/Spouse Absent","Total who are married with spouse absent, for the population 15 years and over",null,null,null,""]
[null,157,"Marital Status Divorced","Total who are divorced, for the population 15 years and over",null,null,null,""]
[null,158,"Marital Status Widowed","Total who are widowed, for the population 15 years and over",null,null,null,""]
[null,159,"Marital Status Population Female 15+ Years","Female population 15 years and over",null,null,null,""]
[null,160,"Marital Status Female Never Married","Females who never married, for the population 15 years and over",null,null,null,""]
[null,161,"Marital Status Female Married/Spouse Present","Females who are married with spouse present, for the population 15 years and over",null,null,null,""]
[null,162,"Marital Status Female Married/Spouse Absent","Females who are married with spouse absent, for the population 15 years and over",null,null,null,""]
[null,163,"Marital Status Female Divorced","Females who are divorced, for the population 15 years and over",null,null,null,""]
[null,164,"Marital Status Female Widowed","Females who are widowed, for the population 15 years and over",null,null,null,""]
[null,165,"Marital Status Population Male 15+ Years","Male population 15 years and over",null,null,null,""]
[null,166,"Marital Status Male Never Married","Males who never married, for the population 15 years and over",null,null,null,""]
[null,167,"Marital Status Male Married/Spouse Present","Males who are married with spouse present, for the population 15 years and over",null,null,null,""]
[null,168,"Marital Status Male Married/Spouse Absent","Males who are married with spouse absent, for the population 15 years and over",null,null,null,""]
[null,169,"Marital Status Male Divorced","Males who are divorced, for the population 15 years and over",null,null,null,""]
[null,170,"Marital Status Male Widowed","Males who are widowed, for the population 15 years and over",null,null,null,""]
[null,171,"Population","Total Population",null,null,null,""]
[null,172,"Population Female","Female population",null,null,null,""]
[null,173,"Population Male","Male population",null,null,null,""]
[null,174,"Population Hispanic","Hispanic population",null,null,null,""]
[null,175,"Population Non-Hispanic","Non-Hispanic population",null,null,null,""]
[null,176,"Race Asian","Asian alone population",null,null,null,""]
[null,177,"Race Black","Black or African American alone population",null,null,null,""]
[null,178,"Race Hawaiian","Native Hawaiian and Other Pacific Islander alone population",null,null,null,""]
[null,179,"Race Indian","American Indian and Alaska Native alone population",null,null,null,""]
[null,180,"Race Other","Some other race alone population",null,null,null,""]
[null,181,"Race Two or more","Two or more races population",null,null,null,""]
[null,182,"Race White","White alone population",null,null,null,""]
[null,183,"Rent Gross Cash Less than $250","For renter-occupied housing units, those with cash rent less than $250",null,null,null,""]
[null,184,"Rent Gross Cash $250-499","For renter-occupied housing units, those with cash rent between $250 and $499",null,null,null,""]
[null,185,"Rent Gross Cash $500-749","For renter-occupied housing units, those with cash rent between $500 and $749",null,null,null,""]
[null,186,"Rent Gross Cash $750-999","For renter-occupied housing units, those with cash rent between $750 and $999",null,null,null,""]
[null,187,"Rent Gross Cash $1000-1249","For renter-occupied housing units, those with cash rent between $1000 and $1249",null,null,null,""]
[null,188,"Rent GrossCash $1250-1499","For renter-occupied housing units, those with cash rent between $1250 and $1499",null,null,null,""]
[null,189,"Rent Gross Cash $1500-1999","For renter-occupied housing units, those with cash rent between $1500 and $1999",null,null,null,""]
[null,190,"Rent Gross Cash $2000+","For renter-occupied housing units, those with cash rent $2000 or more",null,null,null,""]
[null,191,"Rent Gross No Cash","For renter-occupied housing units, those with no cash rent",null,null,null,""]
[null,192,"School Enroll Preschool","Total enrolled in nursery school (public and private), for the population 3 years and over",null,null,null,""]
[null,193,"School Enroll Kindergarten","Total enrolled in kindergarten (public and private), for the population 3 years and over",null,null,null,""]
[null,194,"School Enroll Grades 1-4","Total enrolled in grades 1 through 4 (public and private), for the population 3 years and over",null,null,null,{"$f":"TRIM(G195)","v":""}]
[null,195,"School Enroll Grades 5-8","Total enrolled in grades 5 through 8 (public and private), for the population 3 years and over",null,null,null,""]
[null,{"$f":"B196+1","v":196},"School Enroll Grades 9-12","Total enrolled in grades 9 through 12 (public and private), for the population 3 years and over",null,null,null,""]
[null,197,"School Enroll College","Total enrolled in college (public and private), for the population 3 years and over",null,null,null,""]
[null,198,"School Enroll Grad School","Total enrolled in graduate school (public and private), for the population 3 years and over",null,null,null,""]
[null,199,"School Enroll Not Enrolled","Total not enrolled in school (public and private), for the population 3 years and over",null,null,null,""]
[null,200,"School Enroll Female Preschool","Females enrolled in nursery school (public and private), for the population 3 years and over",null,null,null,""]
[null,201,"School Enroll Female Kindergarten","Females enrolled in kindergarten (public and private), for the population 3 years and over",null,null,null,""]
[null,202,"School Enroll Female Grades 1-4","Females enrolled in grades 1 through 4 (public and private), for the population 3 years and over",null,null,null,""]
[null,203,"School Enroll Female Grades 5-8","Females enrolled in grades 5 through 8 (public and private), for the population 3 years and over",null,null,null,""]
[null,204,"School Enroll Female Grades 9-12","Females enrolled in grades 9 through 12 (public and private), for the population 3 years and over",null,null,null,""]
[null,205,"School Enroll Female College","Females enrolled in college (public and private), for the population 3 years and over",null,null,null,""]
[null,206,"School Enroll Female Grad School","Females enrolled in graduate school (public and private), for the population 3 years and over",null,null,null,""]
[null,207,"School Enroll Female Not Enrolled","Females not enrolled in school (public and private), for the population 3 years and over",null,null,null,""]
[null,208,"School Enroll Male Preschool","Males enrolled in nursery school (public and private), for the population 3 years and over",null,null,null,""]
[null,209,"School Enroll Male Kindergarten","Males enrolled in kindergarten (public and private), for the population 3 years and over",null,null,null,""]
[null,210,"School Enroll Male Grades 1-4","Males enrolled in grades 1 through 4 (public and private), for the population 3 years and over",null,null,null,""]
[null,211,"School Enroll Male Grades 5-8","Males enrolled in grades 5 through 8 (public and private), for the population 3 years and over",null,null,null,""]
[null,212,"School Enroll Male Grades 9-12","Males enrolled in grades 9 through 12 (public and private), for the population 3 years and over",null,null,null,""]
[null,213,"School Enroll Male College","Males enrolled in college (public and private), for the population 3 years and over",null,null,null,""]
[null,214,"School Enroll Male Grad School","Males enrolled in graduate school (public and private), for the population 3 years and over",null,null,null,""]
[null,215,"School Enroll Male Not Enrolled","Males not enrolled in school (public and private), for the population 3 years and over",null,null,null,""]